fUSD/lending_fUSD_20260314
["ID","MTS","AMOUNT","RATE_DAILY","PERIOD"]
[408373937,1773522638372,-11587.20443766,0.00016473,2]
[408373938,1773522638384,-2500.0,0.00016492,2]
[408373939,1773522638393,-2032.63069331,0.00016492,2]
[408373940,1773522638405,-166.66,0.00016502,2]
[408373941,1773522638413,-300.41884499,0.00016521,2]
[408373942,1773522638422,-2500.0,0.00016521,2]
[408373943,1773522638431,-2500.0,0.00016521,2]
[408373945,1773522638441,-2500.0,0.00016521,2]
[408373946,1773522638451,-2500.0,0.00016521,2]
[408373947,1773522638460,-332.93840124,0.00016521,2]
[408373948,1773522640688,-2167.06159876,0.00016521,2]
[408373949,1773522640698,-195.0,0.00016521,2]
[408373950,1773522640708,-195.0,0.00016521,2]
[408373951,1773522640717,-899.02657552,0.00016521,2]
[408373959,1773522643448,-780.97342448,0.00016521,2]
[408373960,1773522643460,-250.0,0.00016522,2]
[408373961,1773522643469,-221.02773631,0.00016539,2]
[408374026,1773523039894,-3362.8592,0.00014844,2]
[408374027,1773523039922,-250.0,0.00014881,2]
[408374028,1773523039950,-500.0,0.00014919,2]
[408374029,1773523039977,-293.69799655,0.00014919,2]
[408374030,1773523040004,-153.09936437,0.00014921,2]
[408374031,1773523040032,-53.75969149,0.00014921,2]
[408374032,1773523040140,-773.17749518,0.00014921,2]
[408374033,1773523040182,-250.0,0.00014924,2]
[408374034,1773523040211,-1200.0,0.00015019,2]
[408374035,1773523040240,-300.0,0.00015019,2]
[408374036,1773523040326,-6500.01,0.0001502,2]
[408374037,1773523042129,-4353.79396734,0.0001502,2]
[408374038,1773523042153,-1292.42206532,0.0001502,2]
[408374039,1773523045179,-300.0,0.0001502,2]
[408374040,1773523045209,-500.0,0.0001502,2]
[408374041,1773523045238,-500.0,0.0001502,2]
[408374042,1773523048955,500.0,0.0001502,2]
[408374050,1773523554464,1578.52,0.00011507,2]
[408374051,1773523598360,159.39,0.0001131,2]
[408374052,1773523598570,159.39,0.00013195,2]
[408374053,1773523623623,3716.0,0.000112,5]
[408374054,1773523667123,1852.42,0.00013963,2]
[408374055,1773523724436,2534.29,0.00013955,2]
[408374056,1773523724457,7465.71,0.00013955,2]
[408374057,1773523734859,2534.3,0.00013955,2]
[408374058,1773523734881,705.7,0.00013955,2]
[408374059,1773523769148,-151.6648833,0.0001402,2]
[408374060,1773523769170,-200.0,0.000141,2]
[408374061,1773523769190,-8439.06,0.0001412,2]
[408374062,1773523769211,-300.0,0.0001412,2]
[408374063,1773523769232,-2093.58238936,0.0001412,2]
[408374064,1773523769253,-1600.0,0.00014121,2]
[408374065,1773523782450,200.0,0.00014036,2]
[408374066,1773523814115,200.0,0.000138,2]
[408374073,1773523831494,-720.8,0.000143,2]
[408374074,1773523831504,-66.33415081,0.000143,2]
[408374076,1773523831515,-201.66584919,0.000143,2]
[408374077,1773523831525,-183.33708337,0.00014518,2]
[408374078,1773523831538,-66.66291663,0.00014518,2]
[408374079,1773523831547,-235.52200422,0.00014721,2]
[408374080,1773523831559,-303.8818997,0.00014721,2]
[408374081,1773523831674,-413.43024689,0.00014721,2]
[408374082,1773523831690,-15.78294919,0.00014721,2]
[408374083,1773523831701,-1200.0,0.00014737,2]
[408374084,1773523831711,-180.0,0.00014737,2]
[408374085,1773523831720,-150.0,0.00014737,2]
[408374086,1773523831731,-300.0,0.00014737,2]
[408374087,1773523831741,-500.0,0.00014738,2]
[408374088,1773523831751,-150.0,0.00014738,2]
[408374089,1773523831761,-500.0,0.00014738,2]
[408374090,1773523831773,-254.00301513,0.00014738,2]
[408374091,1773523831783,-150.0,0.00014738,2]
[408374092,1773523831793,-500.0,0.00014738,2]
[408374093,1773523831803,-150.0,0.00014738,2]
[408374094,1773523831813,-500.0,0.00014738,2]
[408374095,1773523831823,-500.0,0.00014738,2]
[408374096,1773523831833,-500.0,0.00014738,2]
[408374097,1773523831843,-500.0,0.00014738,2]
[408374098,1773523831852,-500.0,0.00014738,2]
[408374099,1773523831862,-150.0,0.00014738,2]
[408374100,1773523831871,-150.0,0.00014738,2]
[408374101,1773523831881,-500.0,0.00014738,2]
[408374102,1773523831891,-152.11749932,0.00014738,2]
[408374103,1773523831901,-150.0,0.00014738,2]
[408374104,1773523831910,-500.0,0.00014738,2]
[408374105,1773523831919,-150.0,0.00014738,2]
[408374106,1773523831928,-150.0,0.00014738,2]
[408374107,1773523831938,-154.60523735,0.00014738,2]
[408374108,1773523831948,-150.0,0.00014738,2]
[408374109,1773523831957,-200.0,0.00014738,2]
[408374110,1773523831966,-500.0,0.00014738,2]
[408374111,1773523831977,-500.0,0.00014793,2]
[408374112,1773523831988,-150.0,0.00014793,2]
[408374113,1773523831997,-500.0,0.00014793,2]
[408374114,1773523832007,-150.0,0.00014793,2]
[408374115,1773523832017,-500.0,0.00014793,2]
[408374116,1773523832028,-500.0,0.00014793,2]
[408374117,1773523832037,-500.0,0.00014793,2]
[408374118,1773523832047,-500.0,0.00014793,2]
[408374119,1773523832056,-500.0,0.00014793,2]
[408374120,1773523832066,-500.0,0.00014793,2]
[408374121,1773523832077,-150.74235965,0.00014793,2]
[408374122,1773523832087,-150.0,0.00014793,2]
[408374123,1773523832096,-500.0,0.00014793,2]
[408374124,1773523832106,-150.0,0.00014793,2]
[408374125,1773523832116,-500.0,0.00014793,2]
[408374126,1773523832125,-204.52479731,0.00014793,2]
[408374127,1773523832135,-150.0,0.00014793,2]
[408374128,1773523832145,-150.0,0.00014793,2]
[408374129,1773523832154,-500.0,0.00014793,2]
[408374130,1773523832163,-260863.24591575,0.00014821,2]
[408374131,1773523832175,-25896.24132479,0.00014821,2]
[408374132,1773523832187,-8057.68336728,0.00014821,2]
[408374133,1773523832202,-3200.41564869,0.00014821,2]
[408374137,1773523837348,-655.6614818,0.00014821,2]
[408374138,1773523837404,-15837.27592586,0.00014821,2]
[408374139,1773523837418,-754.07848955,0.00014821,2]
[408374140,1773523837430,-307.92957538,0.00014821,2]
[408374141,1773523837628,-6620.87923929,0.00014821,2]
[408374144,1773523839578,-10931.60342934,0.00014738,2]
[408374145,1773523839587,-6504.33643161,0.00014821,2]
[408374146,1773523839597,-500.0,0.00014838,2]
[408374147,1773523839607,-150.0,0.00014838,2]
[408374148,1773523839617,-150.0,0.00014838,2]
[408374149,1773523839626,-150.0,0.00014838,2]
[408374150,1773523839635,-150.1763193,0.00014838,2]
[408374151,1773523839645,-150.0,0.00014838,2]
[408374152,1773523839654,-150.0,0.00014838,2]
[408374153,1773523839664,-153.98399154,0.00014838,2]
[408374154,1773523839673,-150.0,0.00014838,2]
[408374155,1773523839683,-273.67521376,0.00014838,2]
[408374156,1773523839695,-155.74326597,0.00014838,2]
[408374157,1773523839704,-150.0,0.00014838,2]
[408374158,1773523839714,-170.76199485,0.00014838,2]
[408374159,1773523839723,-500.0,0.00014838,2]
[408374160,1773523839734,-237.6962081,0.00014838,2]
[408374161,1773523839743,-150.0,0.00014838,2]
[408374162,1773523839753,-150.0,0.00014838,2]
[408374163,1773523839763,-150.0,0.00014838,2]
[408374164,1773523839772,-150.0,0.00014848,2]
[408374165,1773523839782,-631.48481368,0.00014848,2]
[408374166,1773523839791,-162.24562863,0.00014848,2]
[408374167,1773523839800,-200.0,0.00014848,2]
[408374168,1773523839811,-500.0,0.00014848,2]
[408374169,1773523839820,-500.0,0.00014848,2]
[408374170,1773523839830,-500.0,0.00014848,2]
[408374171,1773523839839,-500.0,0.00014848,2]
[408374172,1773523839848,-202.66837309,0.00014848,2]
[408374173,1773523839857,-500.0,0.00014848,2]
[408374174,1773523839866,-150.0,0.00014848,2]
[408374175,1773523839876,-500.0,0.00014848,2]
[408374176,1773523839885,-200.0,0.00014848,2]
[408374177,1773523839895,-500.0,0.00014848,2]
[408374178,1773523839905,-150.0,0.00014848,2]
[408374179,1773523839914,-200.0,0.00014848,2]
[408374180,1773523839923,-500.0,0.00014848,2]
[408374181,1773523839932,-500.0,0.00014873,2]
[408374182,1773523839942,-500.0,0.00014873,2]
[408374183,1773523839951,-500.0,0.00014873,2]
[408374184,1773523839961,-152.00387375,0.00014873,2]
[408374185,1773523839970,-500.0,0.00014893,2]
[408374186,1773523839980,-150.0,0.00014893,2]
[408374187,1773523839990,-279.15899332,0.00014893,2]
[408374188,1773523839999,-187.38563793,0.00014893,2]
[408374189,1773523840009,-150.0,0.00014893,2]
[408374190,1773523840018,-150.0,0.00014893,2]
[408374191,1773523840027,-500.0,0.00014893,2]
[408374192,1773523840037,-150.0,0.00014893,2]
[408374193,1773523840047,-150.0,0.00014893,2]
[408374194,1773523840056,-200.0,0.00014902,2]
[408374195,1773523840066,-500.0,0.00014902,2]
[408374196,1773523840076,-500.0,0.00014902,2]
[408374197,1773523840086,-500.0,0.00014902,2]
[408374198,1773523840096,-406.55650963,0.00014902,2]
[408374199,1773523840105,-500.0,0.00014902,2]
[408374200,1773523840114,-202.7141884,0.00014902,2]
[408374201,1773523840124,-500.0,0.00014902,2]
[408374202,1773523840134,-500.0,0.00014902,2]
[408374203,1773523840143,-150.0,0.00014902,2]
[408374204,1773523840152,-500.0,0.00014902,2]
[408374205,1773523840162,-1120.9195,0.00014921,2]
[408374206,1773523840172,-500.0,0.00014948,2]
[408374207,1773523840182,-200.0,0.00014948,2]
[408374208,1773523840191,-150.0,0.00014948,2]
[408374209,1773523840201,-150.0,0.00014948,2]
[408374210,1773523840210,-500.0,0.00014948,2]
[408374211,1773523840220,-150.0,0.00014948,2]
[408374212,1773523840229,-154.13895314,0.00014948,2]
[408374214,1773523840239,-500.0,0.00014957,2]
[408374216,1773523840249,-500.0,0.00014957,2]
[408374217,1773523840259,-500.0,0.00014957,2]
[408374218,1773523840268,-500.0,0.00014957,2]
[408374219,1773523840278,-500.0,0.00014957,2]
[408374220,1773523840287,-500.0,0.00014957,2]
[408374221,1773523840297,-150.0,0.00014957,2]
[408374222,1773523840306,-500.0,0.00014957,2]
[408374223,1773523840316,-596.68097798,0.00015002,2]
[408374224,1773523840326,-150.0,0.00015002,2]
[408374225,1773523840336,-273.86451249,0.00015002,2]
[408374226,1773523840346,-300.0,0.00015002,2]
[408374227,1773523840355,-202.64960457,0.00015002,2]
[408374228,1773523840365,-200.0,0.00015012,2]
[408374229,1773523840374,-500.0,0.00015012,2]
[408374230,1773523840384,-500.0,0.00015012,2]
[408374231,1773523840393,-500.0,0.00015012,2]
[408374232,1773523840403,-500.0,0.00015012,2]
[408374233,1773523840412,-500.0,0.00015012,2]
[408374234,1773523840422,-500.0,0.00015012,2]
[408374235,1773523840432,-500.0,0.00015012,2]
[408374236,1773523840442,-500.0,0.00015012,2]
[408374237,1773523840451,-500.0,0.00015012,2]
[408374238,1773523840460,-500.0,0.00015012,2]
[408374239,1773523840469,-151.0,0.00015012,2]
[408374240,1773523840479,-500.0,0.00015012,2]
[408374241,1773523840488,-151.0,0.00015012,2]
[408374242,1773523840498,-151.0,0.00015012,2]
[408374243,1773523840507,-151.0,0.00015012,2]
[408374244,1773523840517,-151.0,0.00015012,2]
[408374245,1773523840527,-151.0,0.00015012,2]
[408374246,1773523840536,-151.0,0.00015012,2]
[408374247,1773523840546,-151.0,0.00015012,2]
[408374248,1773523840555,-151.0,0.00015012,2]
[408374249,1773523840564,-151.0,0.00015012,2]
[408374250,1773523840574,-151.0,0.00015012,2]
[408374251,1773523840583,-151.0,0.00015012,2]
[408374252,1773523840592,-151.0,0.00015012,2]
[408374253,1773523840602,-151.0,0.00015012,2]
[408374254,1773523840611,-151.0,0.00015012,2]
[408374255,1773523840620,-151.0,0.00015012,2]
[408374256,1773523840630,-151.0,0.00015012,2]
[408374257,1773523840639,-151.0,0.00015012,2]
[408374258,1773523840648,-151.0,0.00015012,2]
[408374259,1773523840657,-151.0,0.00015012,2]
[408374260,1773523840667,-151.0,0.00015012,2]
[408374261,1773523840677,-151.0,0.00015012,2]
[408374262,1773523840687,-151.0,0.00015012,2]
[408374263,1773523840699,-151.0,0.00015012,2]
[408374264,1773523840709,-151.0,0.00015012,2]
[408374265,1773523840719,-151.0,0.00015012,2]
[408374266,1773523840731,-151.0,0.00015012,2]
[408374267,1773523840741,-151.0,0.00015012,2]
[408374268,1773523840750,-151.0,0.00015012,2]
[408374269,1773523840759,-151.0,0.00015012,2]
[408374270,1773523840769,-299.02327556,0.00015012,2]
[408374271,1773523840779,-500.0,0.00015012,2]
[408374272,1773523840789,-500.0,0.00015012,2]
[408374273,1773523840799,-500.0,0.00015012,2]
[408374274,1773523840808,-222.76120874,0.00015012,2]
[408374275,1773523840817,-500.0,0.00015012,2]
[408374276,1773523840827,-249.32,0.00015012,2]
[408374277,1773523840836,-500.0,0.0001502,2]
[408374278,1773523840845,-254.33301432,0.0001502,2]
[408374279,1773523840854,-500.0,0.0001502,2]
[408374280,1773523840863,-323.68804056,0.0001502,2]
[408374281,1773523840872,-500.0,0.0001502,2]
[408374282,1773523840881,-326.67510369,0.0001502,2]
[408374283,1773523840890,-500.0,0.0001502,2]
[408374284,1773523840899,-500.0,0.0001502,2]
[408374285,1773523840909,-500.0,0.0001502,2]
[408374286,1773523840918,-547.64288216,0.0001502,2]
[408374287,1773523840928,-500.0,0.0001502,2]
[408374288,1773523840938,-500.0,0.0001502,2]
[408374289,1773523840948,-500.0,0.0001502,2]
[408374290,1773523840957,-275890.5739,0.00015021,2]
[408374291,1773523840967,-285.76800296,0.00015021,2]
[408374292,1773523840976,-7137.55646427,0.00015021,2]
[408374295,1773523842489,-6434.83470058,0.00014738,2]
[408374296,1773523842500,-500.0,0.0001482,2]
[408374297,1773523842513,-500.0,0.0001482,2]
[408374298,1773523842526,-452.28532462,0.0001482,2]
[408374299,1773523842535,-500.0,0.0001482,2]
[408374300,1773523842549,-500.0,0.0001482,2]
[408374301,1773523842561,-595.95741051,0.0001482,2]
[408374302,1773523842573,-2862.43353573,0.00015021,2]
[408374303,1773523842583,-540.45279181,0.00015067,2]
[408374304,1773523842591,-500.0,0.00015067,2]
[408374305,1773523842602,-500.0,0.00015067,2]
[408374306,1773523842611,-500.0,0.00015067,2]
[408374307,1773523842622,-212.0,0.00015068,2]
[408374308,1773523842631,-162.56777794,0.00015073,2]
[408374309,1773523842642,-500.23347102,0.00015073,2]
[408374310,1773523842651,-159.39,0.0001508,2]
[408374311,1773523842661,-500.0,0.00015122,2]
[408374312,1773523842670,-500.0,0.00015122,2]
[408374313,1773523842679,-500.0,0.00015122,2]
[408374314,1773523842691,-500.0,0.00015173,2]
[408374315,1773523842701,-505.18477373,0.00015173,2]
[408374316,1773523842711,-500.0,0.00015176,2]
[408374317,1773523842720,-500.0,0.00015176,2]
[408374318,1773523842735,-500.0,0.00015176,2]
[408374319,1773523842745,-500.0,0.00015231,2]
[408374320,1773523842755,-153.19,0.00015251,2]
[408374321,1773523842766,-500.0,0.00015286,2]
[408374322,1773523842776,-249.32,0.00015286,2]
[408374323,1773523842785,-471.76094671,0.00015341,2]
[408374324,1773523842794,-500.0,0.00015421,2]
[408374325,1773523842803,-229.83813791,0.00015421,2]
[408374326,1773523842812,-500.0,0.00015421,2]
[408374327,1773523842822,-600.0,0.00015422,2]
[408374328,1773523842831,-250.0,0.00015422,2]
[408374329,1773523842840,-2000.0,0.00015449,2]
[408374330,1773523842850,-500.0,0.00015457,2]
[408374331,1773523842858,-488.87411622,0.00015488,2]
[408374332,1773523842870,-500.0,0.00015516,3]
[408374333,1773523842879,-200.0,0.00015516,2]
[408374334,1773523842888,-1000.0,0.00015517,2]
[408374335,1773523842898,-1895.00940229,0.00015532,2]
[408374336,1773523842908,-200.0,0.0001556,2]
[408374337,1773523842918,-249.32,0.0001556,2]
[408374338,1773523842927,-2783.2408915,0.00015598,2]
[408374339,1773523842937,-500.0,0.00015706,2]
[408374340,1773523842946,-1000.0,0.00015721,2]
[408374341,1773523842955,-166.66,0.00015726,2]
[408374342,1773523842964,-250.0,0.0001573,2]
[408374343,1773523842974,-881.0,0.00015788,2]
[408374344,1773523842983,-153.0,0.00015803,2]
[408374345,1773523842992,-151.0,0.00015803,2]
[408374346,1773523843002,-151.0,0.00015803,2]
[408374347,1773523843011,-151.0,0.00015803,2]
[408374348,1773523843021,-151.0,0.00015803,2]
[408374349,1773523843030,-151.0,0.00015803,2]
[408374350,1773523843040,-857.0,0.00015832,2]
[408374351,1773523843050,-249.32,0.00015834,2]
[408374352,1773523843060,-255.0,0.00015857,2]
[408374353,1773523843069,-1600.0,0.00015886,2]
[408374354,1773523843079,-1166.0464322,0.00016062,2]
[408374355,1773523843088,-3356.98,0.00016075,2]
[408374356,1773523843098,-249.33951694,0.00016108,2]
[408374357,1773523843107,-151.0,0.00016116,2]
[408374358,1773523843116,-151.0,0.00016116,2]
[408374359,1773523843126,-250.314476,0.00016116,2]
[408374360,1773523843135,-250.314476,0.00016116,2]
[408374361,1773523843145,-250.314476,0.00016116,2]
[408374362,1773523843154,-250.314476,0.00016116,2]
[408374363,1773523843163,-151.0,0.00016116,2]
[408374364,1773523843173,-151.0,0.00016116,2]
[408374365,1773523843182,-151.0,0.00016116,2]
[408374366,1773523843192,-151.0,0.00016116,2]
[408374367,1773523843201,-151.0,0.00016116,2]
[408374368,1773523843213,-151.0,0.00016116,2]
[408374369,1773523843224,-151.0,0.00016116,2]
[408374370,1773523843233,-151.0,0.00016116,2]
[408374371,1773523843243,-150.99,0.00016116,2]
[408374372,1773523843252,-7599.64,0.00016116,2]
[408374373,1773523843261,-52682.62,0.00016116,2]
[408374374,1773523843270,-14807.5,0.00016116,2]
[408374375,1773523843279,-937.93,0.00016116,2]
[408374376,1773523843289,-151.0,0.00016146,2]
[408374377,1773523843298,-151.0,0.00016146,2]
[408374378,1773523843307,-500.0,0.00016173,2]
[408374379,1773523843316,-169.90870624,0.00016173,2]
[408374380,1773523843325,-1680.0,0.00016211,2]
[408374381,1773523843335,-151.93684573,0.00016438,2]
[408374382,1773523843345,-500.0,0.00016438,2]
[408374383,1773523843354,-151.0,0.00016438,2]
[408374384,1773523843364,-151.0,0.00016438,2]
[408374385,1773523843374,-151.0,0.00016438,2]
[408374386,1773523843384,-151.0,0.00016438,2]
[408374387,1773523843394,-151.0,0.00016438,2]
[408374388,1773523843404,-151.0,0.00016438,2]
[408374389,1773523843414,-151.0,0.00016438,2]
[408374390,1773523843424,-151.0,0.00016438,2]
[408374391,1773523843433,-500.0,0.00016493,2]
[408374392,1773523843443,-1150.95226369,0.00016539,2]
[408374393,1773523843452,-200.0,0.00016539,2]
[408374394,1773523843460,-500.0,0.00016548,2]
[408374395,1773523843470,-500.0,0.00016591,2]
[408374396,1773523843616,-500.0,0.00016591,2]
[408374397,1773523843627,-500.0,0.00016591,2]
[408374398,1773523843636,-500.0,0.00016591,2]
[408374399,1773523843646,-500.0,0.00016591,2]
[408374400,1773523843655,-500.0,0.00016591,2]
[408374401,1773523843664,-500.0,0.00016591,2]
[408374402,1773523843673,-500.0,0.00016591,2]
[408374403,1773523843682,-500.0,0.00016591,2]
[408374404,1773523843696,-500.0,0.00016591,2]
[408374405,1773523843705,-500.0,0.00016591,2]
[408374406,1773523843715,-166.66,0.00016591,2]
[408374407,1773523843726,-151.0,0.00016592,2]
[408374408,1773523843737,-151.0,0.00016592,2]
[408374409,1773523843746,-500.0,0.00016602,2]
[408374410,1773523843755,-184.29,0.00016646,2]
[408374411,1773523843767,-151.0,0.00016647,2]
[408374412,1773523843775,-500.0,0.00016657,2]
[408374413,1773523843785,-500.0,0.00016712,2]
[408374414,1773523843794,-151.0,0.00016753,2]
[408374415,1773523843803,-151.0,0.00016755,2]
[408374416,1773523843813,-151.0,0.00016755,2]
[408374417,1773523843822,-151.0,0.00016755,2]
[408374418,1773523843831,-151.0,0.00016755,2]
[408374419,1773523843840,-250.314476,0.00016755,2]
[408374420,1773523843850,-250.314476,0.00016755,2]
[408374421,1773523843859,-250.314476,0.00016755,2]
[408374422,1773523843868,-250.314476,0.00016755,2]
[408374423,1773523843877,-4428.31,0.00016755,2]
[408374424,1773523843886,-500.0,0.00016767,2]
[408374425,1773523843895,-2424.302,0.00016772,2]
[408374426,1773523843904,-177.588,0.00016772,2]
[408374427,1773523843913,-151.0,0.00016772,2]
[408374428,1773523843922,-151.0,0.00016772,2]
[408374429,1773523843931,-151.0,0.00016772,2]
[408374430,1773523843941,-151.0,0.00016772,2]
[408374431,1773523843950,-500.0,0.00016822,2]
[408374432,1773523843960,-151.0,0.00016822,2]
[408374433,1773523843969,-151.0,0.00016822,2]
[408374434,1773523843978,-161.65368,0.00016822,2]
[408374435,1773523843988,-151.0,0.00016822,2]
[408374436,1773523843997,-151.0,0.00016822,2]
[408374437,1773523844006,-151.0,0.00016822,2]
[408374438,1773523844016,-221.99426,0.00016822,2]
[408374439,1773523844025,-166.66,0.00016823,2]
[408374440,1773523844034,-172.58490106,0.00016832,2]
[408374441,1773523844043,-151.0,0.00016844,2]
[408374442,1773523844053,-500.0,0.00016876,2]
[408374443,1773523844062,-756.0,0.000169,5]
[408374444,1773523844072,-1400.0,0.000169,6]
[408374445,1773523844081,-5000.0,0.000169,2]
[408374446,1773523844090,-151.0,0.000169,2]
[408374447,1773523844100,-151.0,0.000169,2]
[408374448,1773523844109,-151.0,0.000169,2]
[408374449,1773523844119,-775.69723141,0.000169,2]
[408374450,1773523844128,-693.6,0.000169,2]
[408374451,1773523844138,-1343.0,0.00016905,2]
[408374452,1773523844148,-500.0,0.00016921,2]
[408374453,1773523844157,-500.0,0.00016921,2]
[408374454,1773523844167,-500.0,0.00016921,2]
[408374455,1773523844176,-500.0,0.00016921,2]
[408374456,1773523844186,-151.0,0.00016922,2]
[408374457,1773523844196,-217.225635,0.00016922,2]
[408374458,1773523844205,-151.0,0.00016922,2]
[408374459,1773523844214,-151.0,0.00016922,2]
[408374460,1773523844223,-151.0,0.00016922,2]
[408374461,1773523844234,-207.399148,0.00016922,2]
[408374462,1773523844243,-151.0,0.00016922,2]
[408374463,1773523844251,-216.0,0.00016931,2]
[408374464,1773523844260,-500.0,0.00016932,2]
[408374465,1773523844270,-619.28774558,0.00016932,2]
[408374466,1773523844279,-1371.98,0.00016932,2]
[408374467,1773523844288,-159.39,0.00016965,2]
[408374468,1773523844298,-196.19066375,0.0001699,2]
[408374469,1773523844307,-151.0,0.00016997,2]
[408374470,1773523844316,-500.0,0.00016999,2]
[408374471,1773523844325,-500.0,0.00016999,2]
[408374472,1773523844334,-500.0,0.00016999,2]
[408374473,1773523844343,-500.0,0.00016999,2]
[408374474,1773523844354,-500.0,0.00016999,2]
[408374475,1773523844363,-500.0,0.00016999,2]
[408374476,1773523844373,-483.47431518,0.00016999,2]
[408374477,1773523844383,-500.0,0.00016999,2]
[408374478,1773523844394,-500.0,0.00016999,2]
[408374479,1773523844403,-500.0,0.00016999,2]
[408374480,1773523844413,-419085.00569738,0.00017,2]
[408374481,1773523844422,-25163.024056,0.00017,2]
[408374482,1773523844432,-300.0,0.00017,3]
[408374483,1773523844442,-300.0,0.00017,3]
[408374484,1773523844452,-300.0,0.00017,3]
[408374485,1773523844462,-300.0,0.00017,3]
[408374486,1773523844473,-300.0,0.00017,3]
[408374487,1773523844483,-151.0,0.00017,2]
[408374488,1773523844494,-151.0,0.00017,2]
[408374489,1773523844503,-151.0,0.00017,2]
[408374490,1773523844514,-151.0,0.00017,2]
[408374491,1773523844524,-151.0,0.00017,2]
[408374492,1773523844533,-151.0,0.00017,2]
[408374493,1773523844542,-250.314476,0.00017,2]
[408374494,1773523844553,-250.314476,0.00017,2]
[408374495,1773523844562,-250.314476,0.00017,2]
[408374496,1773523844572,-250.314476,0.00017,2]
[408374497,1773523844582,-507.0,0.00017,2]
[408374498,1773523844591,-151.0,0.00017,2]
[408374499,1773523844602,-151.0,0.00017,2]
[408374500,1773523844612,-151.986024,0.00017,2]
[408374501,1773523844621,-151.0,0.00017,2]
[408374502,1773523844633,-151.0,0.00017,2]
[408374503,1773523844644,-151.0,0.00017,2]
[408374504,1773523844654,-433.0,0.00017065,2]
[408374505,1773523844663,-150.0,0.00017176,2]
[408374506,1773523844672,-150.0,0.00017176,2]
[408374507,1773523844682,-150.0,0.00017176,2]
[408374508,1773523844695,-150.0,0.00017176,2]
[408374509,1773523844704,-150.0,0.00017176,2]
[408374510,1773523844713,-150.0,0.00017176,2]
[408374511,1773523844723,-1260.0,0.00017212,2]
[408374512,1773523844733,-1214.0,0.00017212,2]
[408374513,1773523844742,-923.0,0.00017212,2]
[408374514,1773523844751,-6000.0,0.00017212,2]
[408374515,1773523844760,-620.0,0.00017212,2]
[408374516,1773523844771,-878.32,0.00017213,2]
[408374517,1773523844781,-758.0,0.00017233,5]
[408374518,1773523844790,-782.34,0.0001727,2]
[408374519,1773523844800,-1371.98,0.00017326,2]
[408374520,1773523844809,-2000.0,0.0001738,2]
[408374521,1773523844819,-151.0,0.00017445,2]
[408374522,1773523844828,-151.0,0.00017445,2]
[408374523,1773523844837,-151.0,0.00017445,2]
[408374524,1773523844847,-166.66,0.00017457,2]
[408374525,1773523844856,-184.29,0.00017478,2]
[408374526,1773523844865,-878.32,0.00017487,2]
[408374527,1773523844874,-782.34,0.00017544,2]
[408374528,1773523844883,-172.58490105,0.00017547,2]
[408374529,1773523844893,-151.0,0.00017599,2]
[408374530,1773523844902,-151.0,0.00017599,2]
[408374531,1773523844911,-151.0,0.00017599,2]